Cogmind - Beta 14 @@@ ROGUE MODE // 2024.10.02 @ 15:10:15 Player: Corvi Result: Destroyed by H-55 Commando via exploding Compression Vault Performance ------------- Evolutions (0) 0 Regions Visited (3) 600 Robots Destroyed (31) 155 Value Destroyed (889) 889 Prototype IDs (1) 20 Alien Tech Used (0) 0 Bonus (69) 69 TOTAL SCORE: 1733 Bonus ------- Follower Combat Kills 69 Cogmind --------- Core Integrity 0/250 Matter 239/300 Energy 100/100 System Corruption 0% Temperature Cool (0) Movement Core (300) Ox5 Location -7/Recycling Parts ------- > --- POWER (1) -------- (None) > --- PROPULSION (2) --- (None) > --- UTILITY (2) ------ Medium Storage Unit > --- WEAPON (2) ------- Autogun Autogun > --- INVENTORY (10) --- Subdweller Power Source Subdweller Optics V3-11A's Pendant Subdweller Machine Gun Subdweller Machine Gun Subdweller Shrapnel Launcher Subdweller Shrapnel Launcher Mace Scrap Shield Fragment (29) Peak State ------------ > --- POWER ------------ Ion Engine > --- PROPULSION ------- Aluminum Leg Makeshift Leg > --- UTILITY ---------- Medium Storage Unit V3-11A's Pendant > --- WEAPON ----------- Riot Gun Mace > --- INVENTORY -------- Subdweller Optics Autogun Autogun Subdweller Machine Gun Subdweller Shrapnel Launcher [Rating: 16] Favorites ----------- Power Ion Engine Engine Ion Engine Propulsion Aluminum Leg Treads Light Treads Leg Aluminum Leg Utility Medium Storage Unit Device Terrain Scanner Storage Medium Storage Unit Protection Light Armor Plating Weapon Riot Gun Energy Gun Riot Gun Ballistic Gun Autogun Launcher Subdweller Shrapnel Launcher Impact Weapon Mace Build | -11 -10 -10 -7 ------- Run | Yrd Mat Sub Rec Slots Evolved . | . . . . Power . | . . . . Propulsion . | . . . . Utility . | . . . . Weapon . | . . . . Parts Attached 44 | 6 5 31 2 Power 6 | 1 . 5 . Engine 6 | 1 . 5 . Core . | . . . . Reactor . | . . . . Propulsion 7 | 2 1 4 . Treads 4 | 2 1 1 . Leg 3 | . . 3 . Wheel . | . . . . Hover . | . . . . Flight . | . . . . Utility 11 | 1 2 8 . Device 6 | . . 6 . Storage 3 | 1 1 1 . Processor . | . . . . Hackware . | . . . . Protection 2 | . 1 1 . Artifact . | . . . . Weapon 20 | 2 2 14 2 Energy Gun 6 | 1 . 5 . Energy Cannon . | . . . . Ballistic Gun 8 | 1 2 3 2 Ballistic Cannon . | . . . . Launcher 1 | . . 1 . Special Weapon . | . . . . Impact Weapon 5 | . . 5 . Slashing Weapon . | . . . . Piercing Weapon . | . . . . Special Melee Weapon . | . . . . Unidentified Prototypes 1 | . . 1 . Parts Lost 8 | . . 3 5 Power 1 | . . . 1 Propulsion 4 | . . 2 2 Utility 2 | . . 1 1 Weapon 1 | . . . 1 Highest Loss Streak 5 | . . 2 5 To Critical Strikes . | . . . . Average Slot Usage (%) 96 | . 93 96 79 Engine 12 | . 14 12 8 Treads 9 | . 27 7 . Leg 17 | . . 19 24 Device 9 | . . 10 4 Storage 12 | . 14 12 14 Protection 4 | . 12 3 . Energy Gun 12 | . . 13 6 Ballistic Gun 7 | . 24 4 16 Impact Weapon 8 | . . 9 6 Peak Build Rating 16 | 5 10 16 15 Average Rating 12 | 4 8 13 11 On Entrance 7 | . 5 10 15 Naked Turns . | . . . . Heaviest Build 29 | 10 22 29 21 Greatest Support 40 | 40 40 40 30 Greatest Overweight (x) 1 | . 1 1 . Average Overweight (x) . | . . . . Largest Inventory Capacity 10 | 8 10 10 10 Average Capacity 9 | 6 9 9 10 Most Carried 10 | 3 9 10 10 Average Carried 8 | 1 7 8 9 Final Capacity 10 | 8 10 10 10 Final Carried 10 | 3 9 10 9 Class Distribution -------------------- 100% | Mutant Dominant Class ---------------- Mutant | -10/Materials Mutant | -10/Subcaves Mutant | -7/Recycling Resources | -11 -10 -10 -7 ----------- Run | Yrd Mat Sub Rec Matter Collected 1043 | 250 318 475 . Remotely . | . . . . Salvage Created 1188 | . 442 666 80 Parts 75 | . 39 35 1 Haulers Intercepted 2 | . 1 . 1 Recyclers Shooed . | . . . . Parts Field Recycled . | . . . . Retrieved Matter . | . . . . Parts Self-Destructed 12 | . . 12 . Prevented . | . . . . Kills | -11 -10 -10 -7 ------- Run | Yrd Mat Sub Rec Combat Hostiles Destroyed 26 | . 12 14 . Guns 23 | . 12 11 . AOE 2 | . . 2 . Classes Destroyed 6 | . 5 1 . Hauler 2 | . 1 . 1 Operator 1 | . 1 . . Watcher 2 | . 2 . . Swarmer 6 | . 6 . . Grunt 6 | . 6 . . Subdweller 14 | . . 14 . Best Kill Streak 6 | . 6 3 1 Combat Bots Only 3 | . 3 3 . Max Kills in Single Turn 1 | . 1 1 1 Gunslinging . | . . . . Exploded 1 | . . 1 . Melee . | . . . . Uniques/NPCs Destroyed . | . . . . Combat | -11 -10 -10 -7 -------- Run | Yrd Mat Sub Rec Hostile Shots Fired 148 | . 28 47 73 Missed 47 | . 13 10 24 Damage Taken 1760 | . 155 994 611 Core 261 | . 12 87 162 Absorbed by Shields . | . . . . Regen/Repaired (Parts) 89 | . 89 . . Core Remaining (%) 100 | 100 . . . Volleys Fired 78 | . 34 35 9 Largest 2 | . 2 2 2 Hottest 100 | . 46 100 50 Shots Fired 151 | . 67 68 16 Gun 149 | . 67 66 16 Cannon . | . . . . Launcher 2 | . . 2 . Special . | . . . . Kinetic 118 | . 67 37 14 Thermal . | . . . . Explosive . | . . . . Electromagnetic 33 | . . 31 2 Robot Hit Streak 24 | . 8 24 5 Robot Miss Streak 4 | . 4 3 3 Penetration Max . | . . . . Secondary Targets 2 | . 1 1 . Max Gunslinging Chain 1 | . 1 1 . Shots Hit Robots 113 | . 39 64 10 Core Hits 51 | . 18 30 3 Critical Kills 2 | . 2 . . Critical Parts Destroyed . | . . . . Critical Strikes 3 | . 2 1 . Destroy 2 | . 2 . . Smash 1 | . . 1 . Melee Attacks 28 | . . 28 . Impact 28 | . . 28 . Slashing . | . . . . Piercing . | . . . . Sneak Attacks . | . . . . Combat Hostiles . | . . . . Follow-up Attacks . | . . . . Damage Inflicted 2011 | . 622 1219 170 Guns 1590 | . 615 805 170 Cannons . | . . . . Explosions 190 | . . 190 . Melee 224 | . . 224 . Ramming 7 | . 7 . . Kinetic 1329 | . 615 562 152 Thermal . | . . . . Explosive . | . . . . Electromagnetic 451 | . . 433 18 Impact 224 | . . 224 . Slashing . | . . . . Piercing . | . . . . Highest Corruption . | . . . . Average Corruption . | . . . . Corruption Purged . | . . . . Corruption Blocked . | . . . . Overload Shots . | . . . . Overflow Damage 46 | . . 46 . Projectiles . | . . . . Explosions . | . . . . Melee 46 | . . 46 . Knockbacks 2 | . . 2 . Impact 2 | . . 2 . Kinetic . | . . . . Secondary . | . . . . Self-Inflicted Damage . | . . . . Shots . | . . . . Rammed 4 | . 4 . . Targets Rammed 4 | . 4 . . Kicked . | . . . . Crushed . | . . . . Highest Temperature 49 | . 49 5 38 Average Temperature 15 | . 15 3 15 Received Heat Transfer 177 | . 54 63 60 Siege Activations . | . . . . Robots Corrupted 1 | . . 1 . Combat Hostiles 1 | . . 1 . Parts Fried 1 | . . 1 . Impact Corruptions 1 | . . 1 . Robots Melted . | . . . . Combat Hostiles . | . . . . Parts Melted . | . . . . Heat Transferred . | . . . . Parts Sabotaged . | . . . . Parts Stolen . | . . . . Parts Stripped . | . . . . Power Chain Reactions . | . . . . Alert | -11 -10 -10 -7 ------- Run | Yrd Mat Sub Rec Peak Influence 261 | . 261 . 74 Initial 67 | . . . 67 Average 74 | . 80 . 40 Maximum Alert Level 1 | . 1 . . Low Security (%) 96 | 100 96 . 100 Level 1 3 | . 3 . . Level 2 . | . . . . Level 3 . | . . . . Level 4 . | . . . . Level 5 . | . . . . High Security . | . . . . Max Security . | . . . . Squads Dispatched 3 | . 3 . . Investigation 2 | . 2 . . Extermination . | . . . . Reinforcement 1 | . 1 . . Assault . | . . . . Garrison . | . . . . Intercept . | . . . . Searches Triggered . | . . . . Construction Impeded . | . . . . Haulers Reinforced . | . . . . Active Scanning Responses . | . . . . Cargo Convoy Interrupts . | . . . . Stealth | -11 -10 -10 -7 --------- Run | Yrd Mat Sub Rec Distress Signals 1 | . 1 . . Communications Jammed . | . . . . Distress Signals . | . . . . Times Spotted 41 | . 19 20 2 Peak Tracking Total 6 | . 4 6 2 Tactical Retreats 3 | . 2 1 . Traps | -11 -10 -10 -7 ------- Run | Yrd Mat Sub Rec Traps Triggered 1 | . 1 . . Indirectly . | . . . . Trap Hack Attempts . | . . . . Triggered . | . . . . Disarmed . | . . . . Reprogrammed . | . . . . Reused . | . . . . Traps Extracted . | . . . . Installed . | . . . . Triggered 1 | . . 1 . Machines | -11 -10 -10 -7 ---------- Run | Yrd Mat Sub Rec Machines Disabled 4 | . . 4 . Max in Single Turn . | . . . . Machines Repaired . | . . . . Machines Dismantled . | . . . . Machines Sabotaged . | . . . . Overloaded Fab Kills . | . . . . Hacking | -11 -10 -10 -7 --------- Run | Yrd Mat Sub Rec Machines Accessed 10 | . 9 1 . Terminals 7 | . 7 . . Fabricators . | . . . . Repair Stations 1 | . 1 . . Recycling Units 1 | . 1 . . Scanalyzers . | . . . . Garrison Access . | . . . . Total Hacks 25 | . 21 4 . Successful 14 | . 10 4 . Failed 10 | . 10 . . Catastrophic 2 | . 2 . . Database Lockouts 1 | . 1 . . Manual 13 | . 13 . . Terminals 16 | . 16 . . Fabricators . | . . . . Repair Stations 4 | . 4 . . Recycling Units 1 | . 1 . . Scanalyzers . | . . . . Garrison Access . | . . . . Terminal Hacks 7 | . 3 4 . Record 4 | . . 4 . Robot Analysis 1 | . 1 . . Hauler Manifests 1 | . 1 . . Zone Layout 1 | . 1 . . Fabricator Hacks . | . . . . Repair Station Hacks 4 | . 4 . . Scan Component 2 | . 2 . . Repair 2 | . 2 . . Recycling Unit Hacks 1 | . 1 . . Report Inventory 1 | . 1 . . Scanalyzer . | . . . . Garrison Access Hacks . | . . . . Unauthorized Hacks 2 | . 2 . . Terminals 2 | . 2 . . Botnet 1 | . 1 . . Operators 1 | . 1 . . Fabricators . | . . . . Repair Stations . | . . . . Recycling Units . | . . . . Scanalyzers . | . . . . Garrison Access . | . . . . Data Cores Recovered . | . . . . Used . | . . . . Hacking Detections 7 | . 7 . . Full Trace Events 1 | . 1 . . Feedback Events . | . . . . Feedback Blocked . | . . . . Robot Schematics Acquired . | . . . . Robots Built . | . . . . Authchips . | . . . . Time . | . . . . Total Robot Build Rating . | . . . . Part Schematics Acquired . | . . . . Parts Built . | . . . . Authchips . | . . . . Time . | . . . . Total Part Build Rating . | . . . . Parts Repaired 2 | . 2 . . Time 52 | . 52 . . Parts Recycled . | . . . . Recycled Matter . | . . . . Retrieved Matter . | . . . . Retrieved Components . | . . . . Parts Scanalyzed . | . . . . Part Schematics Acquired . | . . . . Parts Damaged . | . . . . Bothacking | -11 -10 -10 -7 ------------ Run | Yrd Mat Sub Rec Used RIF Installer . | . . . . Robots Hacked . | . . . . Non-combat . | . . . . Combat . | . . . . Robot Hacks Applied . | . . . . Relay Couplers Released . | . . . . Fabnet Peak Effective % . | . . . . Robots Rewired . | . . . . Allies Hacked . | . . . . Hacks Repelled . | . . . . Allies | -11 -10 -10 -7 -------- Run | Yrd Mat Sub Rec Total Allies 5 | . . 5 . Largest Group 4 | . . 4 3 Highest-Rated Group 77 | . . 77 58 Highest-Rated Ally 20 | . . 20 20 Total Orders . | . . . . Ally Attacks 14 | . . 9 5 Total Damage 769 | . . 521 248 Kills 8 | . . 6 2 Allies Corrupted . | . . . . Allies Melted . | . . . . Intel | -11 -10 -10 -7 ------- Run | Yrd Mat Sub Rec Robot Analysis Total 1 | . 1 . . Derelict Logs Recovered 2 | . . 2 . Drone Launches . | . . . . Drone Recoveries . | . . . . Exploration | -11 -10 -10 -7 ------------- Run | Yrd Mat Sub Rec Turns Passed 12026 | 83 1342 10532 69 Spaces Moved 5293 | 46 714 4507 26 Core 3 | 3 . . . Treads 2296 | 43 714 1539 . Legs 2994 | . . 2968 26 Wheels . | . . . . Hover . | . . . . Flight . | . . . . Fastest Speed 50 | 50 160 120 130 Average Speed 144 | 152 161 142 131 Slowest Speed 240 | 160 240 240 140 Overloaded Moves . | . . . . Propulsion Burnouts . | . . . . Robots Hopped . | . . . . Cave-ins Triggered . | . . . . Exploration Rate (%) 48 | 3 87 98 7 Regions Visited 3 Branch Regions 2 Pre-discovered Areas 3 | . . 3 . Known Exits Taken . | . . . . Unknown Exits Taken 3 | 1 1 1 . Scrap Searched 13 | . . 13 . Spaces Dug 8 | . . 8 . Terrain Destroyed 16 | . . 16 . Melee 8 | . . 8 . Projectile . | . . . . AOE 8 | . . 8 . Terrain Rammed . | . . . . Walls Destroyed . | . . . . Machines Disabled . | . . . . Actions | -11 -10 -10 -7 --------- Run | Yrd Mat Sub Rec Total 9473 | 57 847 8522 47 Wait 3970 | . 73 3887 10 Move 5290 | 45 713 4506 26 Hop . | . . . . Pick Up 28 | 4 12 12 . Fast Attach 17 | 6 3 8 . Attach 13 | . 1 11 1 Detach 5 | . . 5 . Swap 14 | . 1 12 1 Drop 24 | 2 6 16 . Fire 78 | . 34 35 9 Melee 28 | . . 28 . Ram . | . . . . Kick . | . . . . Crush 4 | . 4 . . Escape Stasis . | . . . . Rewire . | . . . . Trap . | . . . . Miscellaneous 2 | . . 2 . Route ------- -11/Scrapyard -10/Materials (discovered 5 exits: [*Mat x3] / [*Min] / *Sub) -10/Subcaves (discovered 3 exits: [*Mat x2] / [*Rec]) -7/Recycling History --------- Turn | Location | Event 11 | -11/Scrapyard | Discovered new exit (range 15) 84 | -11/Scrapyard | Entered Materials 311 | -10/Materials | Build established: Mutant 318 | -10/Materials | Discovered new exit (range 5) 637 | -10/Materials | Discovered new exit (range 13) 642 | -10/Materials | Discovered new exit (range 14) 780 | -10/Materials | Central database locked down 926 | -10/Materials | Repaired Lgt. Treads 953 | -10/Materials | Repaired Lgt. Treads 1134 | -10/Materials | Discovered new exit (range 4) 1388 | -10/Materials | Discovered new exit (range 11) 1426 | -10/Materials | Entered Subcaves 1572 | -10/Subcaves | Learned location of 1 exit from Materials 1685 | -10/Subcaves | A swath of the cavern ceiling suddenly collapsed 2221 | -10/Subcaves | Learned location of Zion (-7) 2221 | -10/Subcaves | Met a Zionite searching for "candidates" 2347 | -10/Subcaves | Discovered new exit (range 9) 2820 | -10/Subcaves | Shifting Twisted Machinery released Riot Gun 2863 | -10/Subcaves | Shifting Twisted Machinery released Riot Gun 3220 | -10/Subcaves | Discovered new exit (range 4) 3234 | -10/Subcaves | Shifting Twisted Machinery released Multitool 3278 | -10/Subcaves | Shifting Twisted Machinery released Sub. Power Source 3346 | -10/Subcaves | Visited Clippyterm 3350 | -10/Subcaves | Learned location of Extension (-4) 3350 | -10/Subcaves | Learned Factory garrison access intel 4060 | -10/Subcaves | A swath of the cavern ceiling suddenly collapsed 4430 | -10/Subcaves | A Subdweller sparked back to life 4756 | -10/Subcaves | Visited triangular shrine 4772 | -10/Subcaves | Found Prototype Device 4772 | -10/Subcaves | Identified V3-11A's Pendant 4777 | -10/Subcaves | Befriended Subdweller 5076 | -10/Subcaves | A Subdweller sparked back to life 5076 | -10/Subcaves | A Subdweller sparked back to life 5077 | -10/Subcaves | Befriended Subdweller 5077 | -10/Subcaves | Befriended Subdweller 5480 | -10/Subcaves | Disturbed a concealed Subdweller 5482 | -10/Subcaves | Befriended Subdweller 5784 | -10/Subcaves | Discovered new exit (range 15) 10977 | -10/Subcaves | Disturbed a concealed Subdweller 10979 | -10/Subcaves | Befriended Subdweller 11958 | -10/Subcaves | Entered Recycling 11958 | -7/Recycling | Accompanied by 3 allies 11980 | -7/Recycling | Core integrity fell below 50% 12014 | -7/Recycling | Lost 3 allies 12027 | -7/Recycling | Destroyed by H-55 Commando via exploding Compression Vault Last Messages --------------- Riot Gun destroyed. Slug penetrates Wall. R-06 Scavenger collects Prototype Processor. A-02 Transporter destroyed. R-06 Scavenger collects Sub. Monowheel. Y-54 Guardian misfires. Penetrated by Slug. R-06 Scavenger collects Seismic Detector. R-06 Scavenger collects Carbon-fiber Leg. Penetrated by Slug. Ion Engine destroyed. R-06 Scavenger collects Lgt. Nuclear Core. A-02 Transporter destroyed. R-06 Scavenger collects Sub. Shrapnel Launcher. Slug penetrates Wall. Aluminum Leg destroyed. Penetrated by Slug. Mak. Leg destroyed. Penetrated by Slug. Compression Vault explodes. Map ----- +----------------------------------------------------+ | ?????????????????????????????????????? | | ?????????????????????????????????????? | | ?????????????????????????????????????? | | ?????????????????????????????????????? | | ?????????????????????????????????????? | | ?????????????????????????????????????? | | ?????????????????????????????????????? | | ?????????????????????????????????????? | | ?????????????????????????????????????? | | ?????????????????????????????????????? | | ?????????????????????????????????????? | | ?????????????????????????????????????? | | ?????????????????????????????????????? | | ?????????????????????????????????????? | | ?????????????????????????????????????? | | ?????????????????????????????????????? | | ?????????????????????????????????????? | | ?????????????????????????????????????? | | ?????????????????????????????????????? | | ????###########??????????????????????? | | ????# #??????????????????????? | | ????# #??????????????????????? | | ????# "" #??????????????????????? | | ????# "" #??#???????????????????? | | ????# "T #??????????????????????? | | ????# "" @#??????????????????????? | | ????# "" Y h#??????????????????????? | | ????# #?????"#???????????????? | | ????######+#######"Y"# ####??????????? | | ????# ?????????? | | ????# ?????????? | | ????# &%!&% ?????????? | | ????##*""!"""############????????????? | | ????%=%%%!*] #????????????????????? | | ??? =% %=%=*% #????????????????????? | | ??# %%=!]!!% #????????????????????? | | ??# ! !!!%%=%= #???#????????????????? | | ??###"#"""""#"###????????????????????? | | ????###########??????????????????????? | | ?????????????????????????????????????? | | | | | | | | | | | | | | | | | | | | | +----------------------------------------------------+ Best States ------------- Heat Dissipation 25 Energy Generation 15 Energy Capacity 250 Matter Stores 300 Matter Capacity 300 Sight Range 16 Terrain Scan Range 14 Terrain Scan Density 10 Armor Coverage 800 Evasion (%) 55 Recoil Reduction 2 Item Schematics ----------------- None Robot Schematics ------------------ None Fabricated ------------ Nothing Alien Tech Used ----------------- None Achievements -------------- None Challenges ------------ None Game ------ Seed FactoryCloakingSplitter Manual? 0 Play Time 00:42:44 Cumulative 45.0 hours Start 2024.10.02 @ 14:25:13 End 2024.10.02 @ 15:10:15 Sessions 1 Manual Loads 0 Difficulty Rogue Special Mode None Game No. 54 Rogue 54 Adventurer 0 Explorer 0 Win Type - Total 0 Types 0/0/0/0/0/0/0/0/0 Lore% 28 Gallery% 40 Achievement% 35 Wizard Run 0 Options --------- Layout 0 ASCII 0 Keyboard 0 Movement Arrows Keybinds 0 Fullscreen 1 Font 18/SmallcapsGlow Map View 76x50 Zoom Use 0% Tactical HUD 0 Map Filters NONE Filters NONE Steam 0 RUN: bc3e16d8-8623-41f1-b79b-2f893b99f001